[Event "Early-Titled-Tuesday-Blitz-September-05-2023"]
[Site "Chess.com"]
[Date "2023.09.05"]
[Round "5"]
[White "fmAguilar1"]
[Black "miraitrunks"]
[Result "1-0"]
[WhiteElo "2337"]
[BlackElo "2016"]
[TimeControl "180+1"]
[EndTime "8:54:09 PDT"]
[Termination "fmAguilar1 won on time"]

1. e4 {[%clk 0:03:00.1]} 1... c5 {[%clk 0:02:59.4]} 2. Nf3 {[%clk 0:02:59.5]}
2... e6 {[%clk 0:02:59.2]} 3. d4 {[%clk 0:02:59.3]} 3... cxd4 {[%clk 0:03:00.1]}
4. Nxd4 {[%clk 0:02:59.5]} 4... Nc6 {[%clk 0:02:59.7]} 5. Nc3 {[%clk 0:02:58.5]}
5... Nf6 {[%clk 0:02:59.1]} 6. Ndb5 {[%clk 0:02:57.5]} 6... d6 {[%clk
0:02:59.2]} 7. Bg5 {[%clk 0:02:56.5]} 7... a6 {[%clk 0:02:55.7]} 8. Nd4 {[%clk
0:02:54.7]} 8... Be7 {[%clk 0:02:49]} 9. Nb3 {[%clk 0:02:48.1]} 9... O-O {[%clk
0:02:48.1]} 10. Bd3 {[%clk 0:02:48.6]} 10... b5 {[%clk 0:02:45.8]} 11. O-O
{[%clk 0:02:47.2]} 11... b4 {[%clk 0:02:45.8]} 12. Ne2 {[%clk 0:02:46]} 12...
Ne5 {[%clk 0:02:45.3]} 13. Bf4 {[%clk 0:02:39.3]} 13... Bb7 {[%clk 0:02:41.6]}
14. f3 {[%clk 0:02:38.4]} 14... Rc8 {[%clk 0:02:32.1]} 15. Kh1 {[%clk
0:02:37.9]} 15... Nh5 {[%clk 0:02:20.2]} 16. Be3 {[%clk 0:02:36.7]} 16... d5
{[%clk 0:02:07.2]} 17. exd5 {[%clk 0:02:31.2]} 17... Bxd5 {[%clk 0:02:03.9]} 18.
Bxa6 {[%clk 0:02:29.2]} 18... Ra8 {[%clk 0:01:55.4]} 19. Bd3 {[%clk 0:02:26.3]}
19... Bd6 {[%clk 0:01:49.4]} 20. Bf2 {[%clk 0:02:11.4]} 20... Qg5 {[%clk
0:00:58.8]} 21. Ng3 {[%clk 0:02:06.4]} 21... Nf4 {[%clk 0:00:38.6]} 22. Be4
{[%clk 0:01:57.8]} 22... Bxe4 {[%clk 0:00:26.6]} 23. fxe4 {[%clk 0:01:55.8]}
23... Rfd8 {[%clk 0:00:26.1]} 24. Be3 {[%clk 0:01:53.8]} 24... Ng4 {[%clk
0:00:24.4]} 25. Qf3 {[%clk 0:01:41]} 25... Qh4 {[%clk 0:00:13.9]} 26. Bg1 {[%clk
0:01:34.5]} 26... Ng6 {[%clk 0:00:06.8]} 27. h3 {[%clk 0:01:05.1]} 27... N6e5
{[%clk 0:00:06.5]} 28. Qf4 {[%clk 0:01:00.3]} 28... g5 {[%clk 0:00:01.6]} 29.
Nf5 {[%clk 0:00:50.8]} 29... exf5 {[%clk 0:00:01.3]} 30. Qxf5 {[%clk 0:00:48.8]}
30... Nf3 {[%clk 0:00:01.6]} 31. Qxf3 {[%clk 0:00:46.7]} 31... Ne5 {[%clk
0:00:01.1]} 32. Qf5 {[%clk 0:00:44.5]} 32... f6 {[%clk 0:00:01.5]} 33. Nd4
{[%clk 0:00:43.2]} 1-0

[Event "Early-Titled-Tuesday-Blitz-September-05-2023"]
[Site "Chess.com"]
[Date "2023.09.05"]
[Round "5"]
[White "C_K_G"]
[Black "MarijaKuznecova"]
[Result "0-1"]
[WhiteElo "2073"]
[BlackElo "2385"]
[TimeControl "180+1"]
[EndTime "8:54:11 PDT"]
[Termination "MarijaKuznecova won by resignation"]

1. e4 {[%clk 0:03:00.8]} 1... c5 {[%clk 0:02:59.3]} 2. Nf3 {[%clk 0:03:00.7]}
2... d6 {[%clk 0:02:59]} 3. d4 {[%clk 0:03:00.8]} 3... cxd4 {[%clk 0:02:59.6]}
4. Nxd4 {[%clk 0:03:01.1]} 4... Nf6 {[%clk 0:03:00.5]} 5. Nc3 {[%clk 0:03:01.1]}
5... a6 {[%clk 0:03:01.2]} 6. Be2 {[%clk 0:03:01.2]} 6... e5 {[%clk 0:02:58.6]}
7. Nb3 {[%clk 0:03:00.5]} 7... Be7 {[%clk 0:02:59.2]} 8. Be3 {[%clk 0:03:00.5]}
8... Be6 {[%clk 0:02:59.7]} 9. O-O {[%clk 0:03:00.3]} 9... O-O {[%clk
0:03:00.2]} 10. f4 {[%clk 0:02:59.7]} 10... Nbd7 {[%clk 0:02:33]} 11. f5 {[%clk
0:02:55.4]} 11... Bxb3 {[%clk 0:02:32.4]} 12. cxb3 {[%clk 0:02:49.9]} 12... b5
{[%clk 0:02:27.8]} 13. Bf3 {[%clk 0:02:45.5]} 13... h6 {[%clk 0:01:42.7]} 14. g4
{[%clk 0:02:41.8]} 14... Nh7 {[%clk 0:01:39.4]} 15. Rf2 {[%clk 0:02:39.1]} 15...
Bg5 {[%clk 0:01:37]} 16. Qd2 {[%clk 0:02:37.5]} 16... Nc5 {[%clk 0:01:27.9]} 17.
Nd5 {[%clk 0:02:28]} 17... Bh4 {[%clk 0:01:23]} 18. Rg2 {[%clk 0:02:15.7]} 18...
Ng5 {[%clk 0:01:21.2]} 19. Bxg5 {[%clk 0:02:11.7]} 19... Bxg5 {[%clk 0:01:22.1]}
20. Qd3 {[%clk 0:02:06.6]} 20... Nxd3 {[%clk 0:01:18.4]} 21. Rd1 {[%clk
0:01:43.6]} 21... Nf4 {[%clk 0:01:13.1]} 22. Nxf4 {[%clk 0:01:31.6]} 22... Bxf4
{[%clk 0:01:14]} 23. g5 {[%clk 0:01:23.8]} 23... Bxg5 {[%clk 0:01:12.3]} 24. Bh5
{[%clk 0:01:13.3]} 24... Kh8 {[%clk 0:01:08.6]} 25. Kh1 {[%clk 0:01:11.4]} 25...
Bf4 {[%clk 0:01:05]} 26. Rdg1 {[%clk 0:01:09]} 26... Qh4 {[%clk 0:01:02.5]} 27.
Bg4 {[%clk 0:01:01.3]} 27... f6 {[%clk 0:00:53.5]} 28. Rf1 {[%clk 0:00:55.7]}
28... Rac8 {[%clk 0:00:47.1]} 29. a4 {[%clk 0:00:39.7]} 29... bxa4 {[%clk
0:00:38.2]} 30. bxa4 {[%clk 0:00:40.6]} 30... Rc4 {[%clk 0:00:35.9]} 31. b3
{[%clk 0:00:31.7]} 31... Rxe4 {[%clk 0:00:35.1]} 32. Bf3 {[%clk 0:00:27.8]}
32... Re3 {[%clk 0:00:31]} 33. Bd5 {[%clk 0:00:26.8]} 33... Rc8 {[%clk 0:00:24]}
34. Rfg1 {[%clk 0:00:20.8]} 34... Rh3 {[%clk 0:00:23.3]} 0-1

[Event "Early-Titled-Tuesday-Blitz-September-05-2023"]
[Site "Chess.com"]
[Date "2023.09.05"]
[Round "5"]
[White "PetrolulSah"]
[Black "ElenaPershina"]
[Result "1-0"]
[WhiteElo "2135"]
[BlackElo "2314"]
[TimeControl "180+1"]
[EndTime "8:54:11 PDT"]
[Termination "PetrolulSah won on time"]

1. d4 {[%clk 0:03:00.9]} 1... d5 {[%clk 0:02:59.3]} 2. c4 {[%clk 0:03:00.5]}
2... c6 {[%clk 0:02:59.9]} 3. cxd5 {[%clk 0:03:00.7]} 3... cxd5 {[%clk
0:02:59.5]} 4. Bf4 {[%clk 0:03:01.3]} 4... Nf6 {[%clk 0:02:58.8]} 5. Nc3 {[%clk
0:03:00.2]} 5... Nc6 {[%clk 0:02:58.8]} 6. e3 {[%clk 0:03:00.4]} 6... a6 {[%clk
0:02:59]} 7. Bd3 {[%clk 0:02:55]} 7... Bg4 {[%clk 0:02:58.1]} 8. Nge2 {[%clk
0:02:54.3]} 8... e6 {[%clk 0:02:55.7]} 9. O-O {[%clk 0:02:52.1]} 9... Bd6 {[%clk
0:02:54.7]} 10. Qd2 {[%clk 0:02:33.9]} 10... O-O {[%clk 0:02:39.7]} 11. Bxd6
{[%clk 0:02:27.1]} 11... Qxd6 {[%clk 0:02:38.6]} 12. Na4 {[%clk 0:02:27.8]}
12... Qb4 {[%clk 0:02:19.8]} 13. Nec3 {[%clk 0:02:13]} 13... e5 {[%clk
0:02:04.6]} 14. a3 {[%clk 0:02:06.1]} 14... Qd6 {[%clk 0:01:56.7]} 15. Nc5
{[%clk 0:01:38.8]} 15... b6 {[%clk 0:01:14.9]} 16. Nxa6 {[%clk 0:01:11.3]} 16...
exd4 {[%clk 0:01:04]} 17. exd4 {[%clk 0:01:08.9]} 17... Nxd4 {[%clk 0:01:03.3]}
18. Nb4 {[%clk 0:01:04.8]} 18... Nb3 {[%clk 0:00:34.3]} 19. Qg5 {[%clk
0:01:00.2]} 19... Nxa1 {[%clk 0:00:32.5]} 20. Rxa1 {[%clk 0:00:58.3]} 20... d4
{[%clk 0:00:24.5]} 21. Ncd5 {[%clk 0:00:47.9]} 21... Nxd5 {[%clk 0:00:20.7]} 22.
Nxd5 {[%clk 0:00:46.8]} 22... f5 {[%clk 0:00:13.7]} 23. Ne7+ {[%clk 0:00:31.3]}
23... Kh8 {[%clk 0:00:12.9]} 24. h3 {[%clk 0:00:30.1]} 24... Rae8 {[%clk
0:00:08]} 25. Re1 {[%clk 0:00:18.1]} 25... Bd1 {[%clk 0:00:01.9]} 26. Rxd1
{[%clk 0:00:11.2]} 26... Rxe7 {[%clk 0:00:01.4]} 27. Bxf5 {[%clk 0:00:11.3]} 1-0

[Event "Early-Titled-Tuesday-Blitz-September-05-2023"]
[Site "Chess.com"]
[Date "2023.09.05"]
[Round "5"]
[White "tk22h"]
[Black "knightinshiningarmour16"]
[Result "0-1"]
[WhiteElo "2378"]
[BlackElo "2124"]
[TimeControl "180+1"]
[EndTime "8:54:12 PDT"]
[Termination "knightinshiningarmour16 won by resignation"]

1. d4 {[%clk 0:02:51.2]} 1... Nf6 {[%clk 0:02:59]} 2. Nf3 {[%clk 0:02:44.5]}
2... d5 {[%clk 0:02:47.5]} 3. c4 {[%clk 0:02:43.9]} 3... c6 {[%clk 0:02:46.2]}
4. e3 {[%clk 0:02:44]} 4... Bg4 {[%clk 0:02:45.8]} 5. h3 {[%clk 0:02:41.6]} 5...
Bf5 {[%clk 0:02:43.8]} 6. Nc3 {[%clk 0:02:40.8]} 6... e6 {[%clk 0:02:43.4]} 7.
Bd3 {[%clk 0:02:39.4]} 7... Bxd3 {[%clk 0:02:43.2]} 8. Qxd3 {[%clk 0:02:39.5]}
8... Nbd7 {[%clk 0:02:36.3]} 9. O-O {[%clk 0:02:39.3]} 9... Bd6 {[%clk
0:02:35.2]} 10. e4 {[%clk 0:02:39.2]} 10... dxe4 {[%clk 0:02:30.7]} 11. Nxe4
{[%clk 0:02:39.2]} 11... Nxe4 {[%clk 0:02:31.6]} 12. Qxe4 {[%clk 0:02:40]} 12...
Nf6 {[%clk 0:02:32.5]} 13. Qh4 {[%clk 0:02:39.6]} 13... Be7 {[%clk 0:02:31.4]}
14. Bg5 {[%clk 0:02:39.4]} 14... O-O {[%clk 0:02:23.2]} 15. Rad1 {[%clk
0:02:38.1]} 15... Re8 {[%clk 0:02:07.7]} 16. Rd3 {[%clk 0:02:35.4]} 16... h6
{[%clk 0:02:04.3]} 17. Bxf6 {[%clk 0:02:34.9]} 17... Bxf6 {[%clk 0:02:04.1]} 18.
Qe4 {[%clk 0:02:34.8]} 18... Qb6 {[%clk 0:02:00.8]} 19. b3 {[%clk 0:02:34.5]}
19... Rad8 {[%clk 0:01:58.9]} 20. Rfd1 {[%clk 0:02:34.2]} 20... Re7 {[%clk
0:01:54.4]} 21. Ne5 {[%clk 0:02:34.1]} 21... Bxe5 {[%clk 0:01:46.4]} 22. dxe5
{[%clk 0:02:34]} 22... Ree8 {[%clk 0:01:44]} 23. Rd6 {[%clk 0:02:32.9]} 23...
Rxd6 {[%clk 0:01:24.4]} 24. exd6 {[%clk 0:02:32.7]} 24... Rd8 {[%clk 0:01:24]}
25. Qe5 {[%clk 0:02:30.4]} 25... c5 {[%clk 0:01:17.3]} 26. Rd3 {[%clk
0:02:28.9]} 26... Qc6 {[%clk 0:00:57.8]} 27. Rg3 {[%clk 0:02:24.1]} 27... g6
{[%clk 0:00:57.4]} 28. Rd3 {[%clk 0:02:20]} 28... b6 {[%clk 0:00:54.6]} 29. h4
{[%clk 0:02:19.6]} 29... h5 {[%clk 0:00:53.6]} 30. Qf4 {[%clk 0:02:03]} 30...
Rd7 {[%clk 0:00:48.7]} 31. Qe5 {[%clk 0:02:01.2]} 31... Qc8 {[%clk 0:00:47.8]}
32. Rg3 {[%clk 0:01:57.2]} 32... Kh7 {[%clk 0:00:36.8]} 33. Rd3 {[%clk
0:01:50.8]} 33... Qd8 {[%clk 0:00:35.8]} 34. Qf4 {[%clk 0:01:46.4]} 34... Kg8
{[%clk 0:00:32]} 35. Qe5 {[%clk 0:01:40]} 35... Kh7 {[%clk 0:00:30]} 36. Qf4
{[%clk 0:01:40]} 36... Kg8 {[%clk 0:00:29.3]} 37. Qe5 {[%clk 0:01:40.2]} 37...
Qxh4 {[%clk 0:00:27.8]} 38. Rg3 {[%clk 0:01:22.8]} 38... Qd8 {[%clk 0:00:19.2]}
39. Qxh5 {[%clk 0:01:17.4]} 39... Rxd6 {[%clk 0:00:19.5]} 40. Qe5 {[%clk
0:01:15.4]} 40... Rd1+ {[%clk 0:00:18.9]} 41. Kh2 {[%clk 0:01:15.1]} 41... Qd6
{[%clk 0:00:19.2]} 42. Qe4 {[%clk 0:01:06.2]} 42... Rd4 {[%clk 0:00:18.9]} 43.
Qa8+ {[%clk 0:01:05.3]} 43... Kg7 {[%clk 0:00:19.1]} 44. Qf3 {[%clk 0:00:59.1]}
44... Rh4+ {[%clk 0:00:18.9]} 45. Kg1 {[%clk 0:00:59.3]} 45... Qd4 {[%clk
0:00:16.8]} 46. a4 {[%clk 0:00:53.7]} 46... Qa1+ {[%clk 0:00:16.6]} 0-1

[Event "Early-Titled-Tuesday-Blitz-September-05-2023"]
[Site "Chess.com"]
[Date "2023.09.05"]
[Round "5"]
[White "ContrVersia"]
[Black "FARIZA2018"]
[Result "1-0"]
[WhiteElo "2911"]
[BlackElo "2521"]
[TimeControl "180+1"]
[EndTime "8:54:13 PDT"]
[Termination "ContrVersia won by resignation"]

1. Nf3 {[%clk 0:02:58.9]} 1... Nf6 {[%clk 0:02:59.8]} 2. c4 {[%clk 0:02:59.3]}
2... e6 {[%clk 0:02:59.3]} 3. g3 {[%clk 0:02:59.9]} 3... d5 {[%clk 0:02:59.4]}
4. Bg2 {[%clk 0:03:00.8]} 4... dxc4 {[%clk 0:02:59.1]} 5. O-O {[%clk 0:02:59.5]}
5... a6 {[%clk 0:02:57.6]} 6. a4 {[%clk 0:02:56.3]} 6... Nbd7 {[%clk 0:02:57.2]}
7. Qc2 {[%clk 0:02:55.4]} 7... c5 {[%clk 0:02:57.1]} 8. a5 {[%clk 0:02:55]} 8...
Be7 {[%clk 0:02:46.3]} 9. Qxc4 {[%clk 0:02:50.1]} 9... O-O {[%clk 0:02:45.9]}
10. Nc3 {[%clk 0:02:50]} 10... Rb8 {[%clk 0:02:45.6]} 11. d3 {[%clk 0:02:36]}
11... b5 {[%clk 0:02:43.2]} 12. axb6 {[%clk 0:02:36]} 12... Nxb6 {[%clk
0:02:43.1]} 13. Qa2 {[%clk 0:02:34.7]} 13... Bb7 {[%clk 0:02:41.6]} 14. Bf4
{[%clk 0:02:32.4]} 14... Rc8 {[%clk 0:02:39.4]} 15. Rfc1 {[%clk 0:02:30.1]}
15... Nfd5 {[%clk 0:02:39.1]} 16. Bd2 {[%clk 0:02:26.1]} 16... Nb4 {[%clk
0:02:38.4]} 17. Qb1 {[%clk 0:01:41.2]} 17... c4 {[%clk 0:02:35.4]} 18. Na4
{[%clk 0:01:41.2]} 18... cxd3 {[%clk 0:02:23]} 19. Rxc8 {[%clk 0:01:28.2]} 19...
Nxc8 {[%clk 0:02:20]} 20. Bxb4 {[%clk 0:01:13]} 20... Bxb4 {[%clk 0:02:19.6]}
21. exd3 {[%clk 0:01:13.3]} 21... Nd6 {[%clk 0:02:07.4]} 22. Qc2 {[%clk
0:00:44]} 22... Nf5 {[%clk 0:02:05.8]} 23. Qc4 {[%clk 0:00:39.1]} 23... Be7
{[%clk 0:02:02.6]} 24. Ne5 {[%clk 0:00:34.3]} 24... Bxg2 {[%clk 0:01:57.3]} 25.
Kxg2 {[%clk 0:00:35.2]} 25... Qb8 {[%clk 0:01:52.3]} 26. Nc6 {[%clk 0:00:22.2]}
26... Qb7 {[%clk 0:01:47.5]} 27. Kg1 {[%clk 0:00:20.6]} 27... Bf6 {[%clk
0:01:42.4]} 28. Rc1 {[%clk 0:00:15.3]} 28... Rc8 {[%clk 0:01:42.2]} 29. g4
{[%clk 0:00:09.4]} 29... Nd6 {[%clk 0:01:33.4]} 30. Qc5 {[%clk 0:00:09.5]} 30...
Qc7 {[%clk 0:00:43.7]} 31. Nb6 {[%clk 0:00:08.5]} 31... Rb8 {[%clk 0:00:39.7]}
32. Nxb8 {[%clk 0:00:07.6]} 32... Qxb8 {[%clk 0:00:38.2]} 33. Nd7 {[%clk
0:00:07.8]} 1-0

[Event "Early-Titled-Tuesday-Blitz-September-05-2023"]
[Site "Chess.com"]
[Date "2023.09.05"]
[Round "5"]
[White "Zheenbekov86"]
[Black "ashwanitiwari"]
[Result "0-1"]
[WhiteElo "2379"]
[BlackElo "2267"]
[TimeControl "180+1"]
[EndTime "8:54:13 PDT"]
[Termination "ashwanitiwari won on time"]

1. e4 {[%clk 0:02:59.5]} 1... c5 {[%clk 0:02:59.8]} 2. Nf3 {[%clk 0:02:58.9]}
2... Nc6 {[%clk 0:02:58.6]} 3. d4 {[%clk 0:02:58.4]} 3... cxd4 {[%clk
0:02:58.6]} 4. Nxd4 {[%clk 0:02:58.2]} 4... g6 {[%clk 0:02:58.8]} 5. g3 {[%clk
0:02:52.5]} 5... Bg7 {[%clk 0:02:57.8]} 6. Ne2 {[%clk 0:02:51.8]} 6... Nf6
{[%clk 0:02:57.5]} 7. Bg2 {[%clk 0:02:51.4]} 7... O-O {[%clk 0:02:58]} 8. O-O
{[%clk 0:02:51.2]} 8... d6 {[%clk 0:02:58.1]} 9. Nbc3 {[%clk 0:02:50.2]} 9... a5
{[%clk 0:02:57.5]} 10. h3 {[%clk 0:02:49]} 10... a4 {[%clk 0:02:57.4]} 11. Nd5
{[%clk 0:02:47.5]} 11... a3 {[%clk 0:02:53]} 12. Rb1 {[%clk 0:02:27.4]} 12...
axb2 {[%clk 0:02:52.4]} 13. Bxb2 {[%clk 0:02:27.4]} 13... Rxa2 {[%clk
0:02:51.5]} 14. Nxf6+ {[%clk 0:02:19.7]} 14... Bxf6 {[%clk 0:02:47.1]} 15. Bxf6
{[%clk 0:02:18.8]} 15... exf6 {[%clk 0:02:47.1]} 16. Nc3 {[%clk 0:02:18.7]}
16... Ra5 {[%clk 0:02:22]} 17. Qd2 {[%clk 0:02:17.3]} 17... f5 {[%clk
0:02:15.4]} 18. Rfd1 {[%clk 0:02:14.4]} 18... fxe4 {[%clk 0:02:14.9]} 19. Nxe4
{[%clk 0:02:08.4]} 19... d5 {[%clk 0:02:11.7]} 20. Qf4 {[%clk 0:01:35.8]} 20...
Qe7 {[%clk 0:02:02.1]} 21. Nf6+ {[%clk 0:01:32.1]} 21... Kg7 {[%clk 0:02:00.1]}
22. Nxd5 {[%clk 0:01:32]} 22... Qe5 {[%clk 0:02:00.3]} 23. Qxe5+ {[%clk
0:01:18.8]} 23... Nxe5 {[%clk 0:01:59.2]} 24. Ne7 {[%clk 0:01:18.8]} 24... Be6
{[%clk 0:01:54.9]} 25. Rxb7 {[%clk 0:01:17]} 25... Ra2 {[%clk 0:01:54.3]} 26. f4
{[%clk 0:01:10.2]} 26... Nc4 {[%clk 0:01:51.2]} 27. Re1 {[%clk 0:00:36.2]} 27...
Rxc2 {[%clk 0:01:49.2]} 28. g4 {[%clk 0:00:34.3]} 28... Nd6 {[%clk 0:01:25.3]}
29. Ra7 {[%clk 0:00:30.7]} 29... Rb8 {[%clk 0:01:22.5]} 30. Rxe6 {[%clk
0:00:24.3]} 30... Rb1+ {[%clk 0:01:17.3]} 31. Kh2 {[%clk 0:00:21.3]} 31... fxe6
{[%clk 0:01:16.9]} 32. Nf5+ {[%clk 0:00:17.6]} 32... Kg8 {[%clk 0:01:10.7]} 33.
Ra8+ {[%clk 0:00:14.4]} 33... Kf7 {[%clk 0:01:08.5]} 34. Nxd6+ {[%clk
0:00:13.3]} 34... Ke7 {[%clk 0:01:08.1]} 35. Ne4 {[%clk 0:00:04.6]} 35... Rbb2
{[%clk 0:01:06.6]} 36. Ra7+ {[%clk 0:00:04.8]} 36... Kd8 {[%clk 0:01:05.5]} 37.
Kg3 {[%clk 0:00:03.9]} 37... Rxg2+ {[%clk 0:01:05]} 38. Kh4 {[%clk 0:00:04.4]}
38... Rbe2 {[%clk 0:01:04.6]} 39. Ng5 {[%clk 0:00:04.2]} 39... h5 {[%clk
0:01:04.2]} 40. Nf7+ {[%clk 0:00:01.3]} 40... Kc8 {[%clk 0:01:03.6]} 0-1

[Event "Early-Titled-Tuesday-Blitz-September-05-2023"]
[Site "Chess.com"]
[Date "2023.09.05"]
[Round "5"]
[White "Aanna12"]
[Black "EvgenyBurmakin"]
[Result "1-0"]
[WhiteElo "2037"]
[BlackElo "2270"]
[TimeControl "180+1"]
[EndTime "8:54:13 PDT"]
[Termination "Aanna12 won on time"]

1. e4 {[%clk 0:03:00.9]} 1... c5 {[%clk 0:02:58.6]} 2. Nc3 {[%clk 0:03:00]} 2...
Nc6 {[%clk 0:02:57.6]} 3. Bb5 {[%clk 0:02:59.2]} 3... Nd4 {[%clk 0:02:58.1]} 4.
Nf3 {[%clk 0:02:58.6]} 4... Nxb5 {[%clk 0:02:56.8]} 5. Nxb5 {[%clk 0:02:58.8]}
5... a6 {[%clk 0:02:52.6]} 6. Nc3 {[%clk 0:02:58.6]} 6... d6 {[%clk 0:02:52.4]}
7. d4 {[%clk 0:02:58.1]} 7... cxd4 {[%clk 0:02:53.3]} 8. Qxd4 {[%clk 0:02:58]}
8... Nf6 {[%clk 0:02:45.9]} 9. Bg5 {[%clk 0:02:55.7]} 9... e6 {[%clk 0:02:43.4]}
10. O-O-O {[%clk 0:02:52.1]} 10... Be7 {[%clk 0:02:37.2]} 11. e5 {[%clk
0:02:48.1]} 11... dxe5 {[%clk 0:02:21.2]} 12. Qxe5 {[%clk 0:02:47.7]} 12... Qb6
{[%clk 0:02:12.4]} 13. Be3 {[%clk 0:02:14.6]} 13... Qc6 {[%clk 0:01:54.8]} 14.
Qg3 {[%clk 0:02:11.2]} 14... O-O {[%clk 0:01:50.5]} 15. Ne5 {[%clk 0:02:09.3]}
15... Qe8 {[%clk 0:01:25]} 16. h4 {[%clk 0:01:35.9]} 16... Nd5 {[%clk
0:01:02.2]} 17. Bh6 {[%clk 0:01:22.3]} 17... Bf6 {[%clk 0:00:57.5]} 18. Ne4
{[%clk 0:01:06.3]} 18... Qe7 {[%clk 0:00:30.6]} 19. Bg5 {[%clk 0:00:47.6]} 19...
Kh8 {[%clk 0:00:26]} 20. Ng4 {[%clk 0:00:26.1]} 20... Bxg5+ {[%clk 0:00:11.6]}
21. hxg5 {[%clk 0:00:25.4]} 21... f5 {[%clk 0:00:06]} 22. Qh4 {[%clk 0:00:15.8]}
22... g6 {[%clk 0:00:04.8]} 23. Ngf6 {[%clk 0:00:13.3]} 23... Nxf6 {[%clk
0:00:04.5]} 24. Nxf6 {[%clk 0:00:12.8]} 24... Rf7 {[%clk 0:00:03.2]} 25. Nxh7
{[%clk 0:00:08.9]} 25... Rxh7 {[%clk 0:00:02.6]} 26. Rd8+ {[%clk 0:00:08.8]} 1-0

[Event "Early-Titled-Tuesday-Blitz-September-05-2023"]
[Site "Chess.com"]
[Date "2023.09.05"]
[Round "5"]
[White "Bilan_Danila"]
[Black "AsaHoffmann"]
[Result "1-0"]
[WhiteElo "2551"]
[BlackElo "2364"]
[TimeControl "180+1"]
[EndTime "8:54:14 PDT"]
[Termination "Bilan_Danila won by resignation"]

1. d4 {[%clk 0:02:49.6]} 1... Nf6 {[%clk 0:02:59.4]} 2. Nf3 {[%clk 0:02:50.2]}
2... d6 {[%clk 0:02:59.1]} 3. g3 {[%clk 0:02:49.8]} 3... c6 {[%clk 0:02:59]} 4.
Bg2 {[%clk 0:02:50.4]} 4... Bf5 {[%clk 0:02:58.6]} 5. O-O {[%clk 0:02:50.8]}
5... h6 {[%clk 0:02:58.6]} 6. c4 {[%clk 0:02:51.5]} 6... Nbd7 {[%clk 0:02:58.4]}
7. Nc3 {[%clk 0:02:51.4]} 7... e5 {[%clk 0:02:58.4]} 8. Re1 {[%clk 0:02:43]}
8... e4 {[%clk 0:02:56.3]} 9. Nd2 {[%clk 0:02:35.9]} 9... d5 {[%clk 0:02:56]}
10. f3 {[%clk 0:02:34.1]} 10... Bb4 {[%clk 0:02:51.4]} 11. fxe4 {[%clk
0:02:24.3]} 11... dxe4 {[%clk 0:02:50.5]} 12. Qb3 {[%clk 0:02:05.9]} 12... Qe7
{[%clk 0:02:40.4]} 13. a3 {[%clk 0:01:58.1]} 13... Bxc3 {[%clk 0:02:37.1]} 14.
bxc3 {[%clk 0:01:59]} 14... b6 {[%clk 0:02:29.7]} 15. Nf1 {[%clk 0:01:45.5]}
15... O-O {[%clk 0:02:27.8]} 16. a4 {[%clk 0:01:44.7]} 16... c5 {[%clk 0:02:23]}
17. a5 {[%clk 0:01:37.5]} 17... Rab8 {[%clk 0:02:21.2]} 18. axb6 {[%clk
0:01:32.1]} 18... Nxb6 {[%clk 0:02:17]} 19. dxc5 {[%clk 0:01:00.2]} 19... Qxc5+
{[%clk 0:02:12.4]} 20. Be3 {[%clk 0:00:55.8]} 20... Qxc4 {[%clk 0:02:12]} 21.
Qxc4 {[%clk 0:00:51.7]} 21... Nxc4 {[%clk 0:02:11.7]} 22. Bxa7 {[%clk
0:00:49.1]} 22... Rb2 {[%clk 0:02:07.6]} 23. Bd4 {[%clk 0:00:43.8]} 23... Nd5
{[%clk 0:01:57.3]} 24. h3 {[%clk 0:00:31.4]} 24... Rc8 {[%clk 0:01:54.6]} 25. g4
{[%clk 0:00:29.2]} 25... Bg6 {[%clk 0:01:53.6]} 26. Reb1 {[%clk 0:00:20.5]}
26... Rxe2 {[%clk 0:01:48.6]} 27. Ng3 {[%clk 0:00:14]} 27... Nf4 {[%clk
0:01:40.2]} 28. Nxe2 {[%clk 0:00:10.3]} 28... Nxe2+ {[%clk 0:01:39.6]} 29. Kh2
{[%clk 0:00:10.6]} 29... Nxd4 {[%clk 0:01:37.9]} 30. cxd4 {[%clk 0:00:11.4]}
30... e3 {[%clk 0:01:37.8]} 31. Rc1 {[%clk 0:00:11.4]} 31... e2 {[%clk
0:01:30.1]} 32. Bf3 {[%clk 0:00:06.9]} 32... Re8 {[%clk 0:01:27.2]} 33. Kg3
{[%clk 0:00:03]} 33... Bd3 {[%clk 0:01:26.4]} 34. Re1 {[%clk 0:00:01.7]} 34...
Nd2 {[%clk 0:01:23]} 35. Kf2 {[%clk 0:00:02.3]} 35... Nb3 {[%clk 0:01:22]} 36.
Ra3 {[%clk 0:00:02.2]} 36... Bc4 {[%clk 0:01:16.4]} 37. Bxe2 {[%clk 0:00:02.1]}
37... Rxe2+ {[%clk 0:01:11.5]} 38. Rxe2 {[%clk 0:00:03]} 38... Bxe2 {[%clk
0:01:11.6]} 39. Rxb3 {[%clk 0:00:03.3]} 39... Bc4 {[%clk 0:01:10.6]} 40. Rb8+
{[%clk 0:00:04.2]} 40... Kh7 {[%clk 0:01:10.1]} 41. Ke3 {[%clk 0:00:05.1]} 41...
Kg6 {[%clk 0:01:09.1]} 42. h4 {[%clk 0:00:04.5]} 42... f5 {[%clk 0:01:08.7]} 43.
Rb6+ {[%clk 0:00:04.3]} 43... Kf7 {[%clk 0:01:07.7]} 44. gxf5 {[%clk 0:00:04.9]}
44... h5 {[%clk 0:01:06.8]} 45. Kf4 {[%clk 0:00:05.3]} 45... Bd3 {[%clk
0:01:06.1]} 46. Kg5 {[%clk 0:00:05.7]} 46... Ke7 {[%clk 0:01:05.5]} 47. Rb7+
{[%clk 0:00:06.1]} 47... Kd6 {[%clk 0:01:04.4]} 48. Rxg7 {[%clk 0:00:05.8]}
48... Kd5 {[%clk 0:01:04.2]} 49. f6 {[%clk 0:00:06.3]} 49... Ke6 {[%clk
0:01:03.9]} 50. Re7+ {[%clk 0:00:06.1]} 50... Kd6 {[%clk 0:01:03.7]} 51. Re3
{[%clk 0:00:05.7]} 51... Bh7 {[%clk 0:01:02.6]} 52. f7 {[%clk 0:00:06]} 1-0